[Event "SRB-chT Men 1st League 2019"]
[Site "Subotica"]
[Date "2019.08.30"]
[Round "9.10"]
[White "Cabarkapa, Novak"]
[Black "Vuckovic, Bojan"]
[Result "1-0"]
[ECO "D00"]
[WhiteElo "2434"]
[BlackElo "2581"]
[Annotator "ChessBase"]
[PlyCount "71"]
[EventDate "2019.08.23"]
[EventType "team-tourn"]
[EventCountry "SRB"]
[SourceTitle "playchess.com"]
[Source "ChessBase"]
[SourceQuality "1"]
[TimeControl "40/5400+30:1800+30"]

1. d4 {[%emt 0:00:00]} Nf6 {[%emt 0:00:00]} 2. Nc3 {[%emt 0:00:00]} d5 {[%emt 0:00:13]} 3. Bf4 {[%emt 0:00:00]} a6 {[%emt 0:00:35]} 4. e3 {[%emt 0:01:22]} e6 {[%emt 0:00:13]} 5. Nf3 {[%emt 0:05:33]} c5 {[%emt 0:00:25]} 6. dxc5 {[%emt 0:03:35]} Bxc5 {[%emt 0:01:24]} 7. Bd3 {[%emt 0:00:14]} b5 {[%emt 0:15:45]} 8. O-O {[%emt 0:17:25]} Bb7 {[%emt 0:01:46]} 9. Qe2 {[%emt 0:02:33]} Nbd7 {[%emt 0:05:04]} 10. a3 {[%emt 0:04:53]} O-O {[%emt 0:08:43]} 11. e4 {[%emt 0:02:42]} dxe4 {[%emt 0:02:10]} 12. Nxe4 {[%emt 0:00:21]} Nxe4 {[%emt 0:01:04]} 13. Bxe4 {[%emt 0:00:06]} Bxe4 {[%emt 0:00:08]} 14. Qxe4 {[%emt 0:00:08]} Nf6 {[%emt 0:00:12]} 15. Qe2 {[%emt 0:15:47]} Qb6 {[%emt 0:02:06]} 16. Bg5 {[%emt 0:05:07]} Nd5 {[%emt 0:10:04]} 17. Ne5 {[%emt 0:00:29]} Qc7 {[%emt 0:08:17]} 18. c4 {[%emt 0:07:46]} bxc4 {[%emt 0:01:30]} 19. Nxc4 {[%emt 0:00:13]} a5 {[%emt 0:09:03]} 20. Rac1 {[%emt 0:03:19]} Rfc8 {[%emt 0:03:33]} 21. Qg4 {[%emt 0:07:06]} Be7 {[%emt 0:04:41]} 22. Bxe7 {[%emt 0:00:44]} Qxe7 {[%emt 0:01:18]} 23. Nxa5 {[%emt 0:01:59]} Rxc1 {[%emt 0:03:45]} 24. Rxc1 {[%emt 0:00:07]} f5 {[%emt 0:02:52]} 25. Qa4 {[%emt 0:04:35]} h6 {[%emt 0:04:25]} 26. g3 {[%emt 0:03:59]} Qg5 {[%emt 0:01:20]} 27. Rd1 {[%emt 0:01:43]} Ne3 {[%emt 0:05:16]} 28. h4 {[%emt 0:02:21]} Qh5 {[%emt 0:00:48]} 29. Re1 {[%emt 0:01:49]} f4 {[%emt 0:03:04]} 30. Qxf4 {[%emt 0:00:45]} Nc2 {[%emt 0:00:07]} 31. Qe4 {[%emt 0:02:09]} Qxa5 {[%emt 0:00:55]} 32. Rc1 {[%emt 0:01:33]} Nxa3 {[%emt 0:00:35]} 33. Qxe6+ {[%emt 0:00:25]} Kh8 {[%emt 0:00:30]} 34. Ra1 {[%emt 0:00:29]} Qd2 {[%emt 0:02:34]} 35. bxa3 {[%emt 0:00:36]} Rxa3 {[%emt 0:00:31]} 36. Qc8+ {[%emt 0:00:23]} 1-0

[Event "SRB-chT Men 1st League 2019"]
[Site "Subotica"]
[Date "2019.08.30"]
[Round "9.11"]
[White "Roganovic, Milos"]
[Black "Lukovic, Vladimir"]
[Result "1-0"]
[ECO "C49"]
[WhiteElo "2505"]
[BlackElo "2420"]
[Annotator "ChessBase"]
[PlyCount "47"]
[EventDate "2019.08.23"]
[EventType "team-tourn"]
[EventCountry "SRB"]
[SourceTitle "playchess.com"]
[Source "ChessBase"]
[SourceQuality "1"]
[TimeControl "40/5400+30:1800+30"]

1. e4 {[%emt 1:30:30]} e5 {[%emt 1:30:30]} 2. Nf3 {[%emt 0:00:30]} Nc6 {[%emt 0:00:30]} 3. Nc3 {[%emt 0:00:30]} Nf6 {[%emt 0:00:30]} 4. Bb5 {[%emt 0:00:30]} Bb4 {[%emt 0:00:30]} 5. O-O {[%emt 0:00:30]} O-O {[%emt 0:00:30]} 6. d3 {[%emt 0:00:30]} d6 {[%emt 0:00:30]} 7. Bg5 {[%emt 0:00:30]} Bxc3 {[%emt 0:00:30]} 8. bxc3 {[%emt 0:00:30]} Qe7 {[%emt 0:00:30]} 9. Re1 {[%emt 0:00:30]} Nd8 {[%emt 0:00:30]} 10. d4 {[%emt 0:00:30]} Ne6 {[%emt 0:00:30]} 11. Bd2 {[%emt 0:00:30]} Rd8 {[%emt 0:00:30]} 12. Nh4 {[%emt 0:00:30]} Nf8 {[%emt 0:00:30]} 13. Nf5 {[%emt 0:00:30]} Bxf5 {[%emt 0:00:30]} 14. exf5 {[%emt 0:00:30]} c6 {[%emt 0:00:30]} 15. Bd3 {[%emt 0:00:30]} Re8 {[%emt 0:00:30]} 16. g4 {[%emt 0:00:30]} Nd5 {[%emt 0:00:30]} 17. c4 {[%emt 0:00:30]} Nc7 {[%emt 0:00:30]} 18. Rb1 {[%emt 0:00:30]} Na6 {[%emt 0:00:30]} 19. c5 {[%emt 0:00:30]} Qd7 {[%emt 0:00:30]} 20. cxd6 {[%emt 0:00:30]} Qxd6 {[%emt 0:00:30]} 21. Rxb7 {[%emt 0:00:30]} Qxd4 {[%emt 0:00:30]} 22. Bxa6 {[%emt 0:00:30]} Rad8 {[%emt 0:00:30]} 23. Bd3 {[%emt 0:00:30]} e4 {[%emt 0:00:30]} 24. Rb4 {[%emt 0:00:30]} 1-0

[Event "SRB-chT Men 1st League 2019"]
[Site "Subotica"]
[Date "2019.08.30"]
[Round "9.12"]
[White "Zegarac, Vuk"]
[Black "Bogosavljevic, Boban"]
[Result "0-1"]
[ECO "D00"]
[WhiteElo "2310"]
[BlackElo "2516"]
[Annotator "ChessBase"]
[PlyCount "98"]
[EventDate "2019.08.23"]
[EventType "team-tourn"]
[EventCountry "SRB"]
[SourceTitle "playchess.com"]
[Source "ChessBase"]
[SourceQuality "1"]
[TimeControl "40/5400+30:1800+30"]

1. d4 {[%emt 0:00:00]} Nf6 {[%emt 0:00:00]} 2. Bg5 {[%emt 0:00:03]} d5 {[%emt 0:00:00]} 3. e3 {[%emt 0:00:08]} c5 {[%emt 0:00:00]} 4. c3 {[%emt 0:00:06]} Nc6 {[%emt 0:00:05]} 5. Nd2 {[%emt 0:00:06]} Bf5 {[%emt 0:14:35]} 6. Ngf3 {[%emt 0:01:43]} Qb6 {[%emt 0:01:56]} 7. dxc5 {[%emt 0:07:48]} Qxb2 {[%emt 0:13:10]} 8. Nd4 {[%emt 0:00:33]} Ne4 {[%emt 0:00:21]} 9. Nxf5 {[%emt 0:08:04]} Nxd2 {[%emt 0:03:55]} 10. Bd3 {[%emt 0:12:08]} Qxc3 {[%emt 0:34:56]} 11. Ke2 {[%emt 0:00:33]} Ne4 {[%emt 0:00:33]} 12. Bxe4 {[%emt 0:01:02]} dxe4 {[%emt 0:01:34]} 13. Rc1 {[%emt 0:01:06]} Qb2+ {[%emt 0:12:09]} 14. Qc2 {[%emt 0:01:31]} Qxc2+ {[%emt 0:00:58]} 15. Rxc2 {[%emt 0:00:05]} f6 {[%emt 0:00:18]} 16. Bh4 {[%emt 0:01:33]} O-O-O {[%emt 0:03:16]} 17. Rd1 {[%emt 0:12:33]} Rxd1 {[%emt 0:01:25]} 18. Kxd1 {[%emt 0:00:04]} e6 {[%emt 0:01:30]} 19. Nd4 {[%emt 0:01:40]} Nxd4 {[%emt 0:00:42]} 20. exd4 {[%emt 0:00:04]} Be7 {[%emt 0:00:33]} 21. Ke2 {[%emt 0:01:28]} Rd8 {[%emt 0:02:06]} 22. Ke3 {[%emt 0:00:50]} Rd5 {[%emt 0:02:36]} 23. Bg3 {[%emt 0:00:45]} f5 {[%emt 0:00:57]} 24. Be5 {[%emt 0:00:27]} Bg5+ {[%emt 0:00:37]} 25. Ke2 {[%emt 0:04:49]} Bf6 {[%emt 0:00:14]} 26. Bxf6 {[%emt 0:00:53]} gxf6 {[%emt 0:00:04]} 27. Rc4 {[%emt 0:01:47]} Kc7 {[%emt 0:00:49]} 28. Ra4 {[%emt 0:00:42]} a6 {[%emt 0:00:23]} 29. Rb4 {[%emt 0:00:26]} e5 {[%emt 0:00:14]} 30. dxe5 {[%emt 0:01:19]} fxe5 {[%emt 0:00:05]} 31. g4 {[%emt 0:00:09]} fxg4 {[%emt 0:02:01]} 32. Rxe4 {[%emt 0:00:14]} h5 {[%emt 0:00:08]} 33. f3 {[%emt 0:02:05]} gxf3+ {[%emt 0:00:14]} 34. Kxf3 {[%emt 0:00:04]} Rxc5 {[%emt 0:00:06]} 35. Rh4 {[%emt 0:00:04]} Rc3+ {[%emt 0:00:30]} 36. Ke2 {[%emt 0:00:05]} Rc2+ {[%emt 0:00:30]} 37. Kd3 {[%emt 0:00:04]} Rxa2 {[%emt 0:00:21]} 38. Rxh5 {[%emt 0:00:03]} Kd6 {[%emt 0:00:29]} 39. Rh7 {[%emt 0:00:33]} b5 {[%emt 0:00:12]} 40. h4 {[%emt 0:00:00]} Kd5 {[%emt 0:00:00]} 41. Rd7+ {[%emt 0:00:14]} Kc5 {[%emt 0:00:54]} 42. Re7 {[%emt 0:00:21]} Ra3+ {[%emt 0:00:49]} 43. Kd2 {[%emt 0:00:07]} Kd4 {[%emt 0:01:06]} 44. Rd7+ {[%emt 0:00:06]} Ke4 {[%emt 0:00:11]} 45. h5 {[%emt 0:00:12]} Rh3 {[%emt 0:00:14]} 46. Ra7 {[%emt 0:00:14]} Rxh5 {[%emt 0:00:20]} 47. Rxa6 {[%emt 0:00:06]} b4 {[%emt 0:00:11]} 48. Rb6 {[%emt 0:00:08]} Rh2+ {[%emt 0:02:02]} 49. Kc1 {[%emt 0:00:04]} Kd4 {[%emt 0:02:33]} 0-1

[Event "SRB-chT Men 1st League 2019"]
[Site "Subotica"]
[Date "2019.08.30"]
[Round "9.15"]
[White "Scekic, Milos"]
[Black "Miladinovic, Igor"]
[Result "1/2-1/2"]
[ECO "A27"]
[WhiteElo "2381"]
[BlackElo "2532"]
[Annotator "ChessBase"]
[PlyCount "34"]
[EventDate "2019.08.23"]
[EventType "team-tourn"]
[EventCountry "SRB"]
[SourceTitle "playchess.com"]
[Source "ChessBase"]
[SourceQuality "1"]
[TimeControl "40/5400+30:1800+30"]

1. c4 {[%emt 0:04:05]} e5 {[%emt 0:00:00]} 2. Nc3 {[%emt 0:00:26]} Nc6 {[%emt 0:00:00]} 3. Nf3 {[%emt 0:00:13]} g6 {[%emt 0:00:39]} 4. d4 {[%emt 0:01:35]} exd4 {[%emt 0:00:09]} 5. Nxd4 {[%emt 0:00:09]} Bg7 {[%emt 0:00:24]} 6. Nxc6 {[%emt 0:03:52]} dxc6 {[%emt 0:09:51]} 7. Qxd8+ {[%emt 0:01:39]} Kxd8 {[%emt 0:00:01]} 8. Bf4 {[%emt 0:10:13]} Be6 {[%emt 0:04:48]} 9. e4 {[%emt 0:04:28]} Bxc3+ {[%emt 0:05:22]} 10. bxc3 {[%emt 0:00:19]} c5 {[%emt 0:00:20]} 11. O-O-O+ {[%emt 0:31:37]} Kc8 {[%emt 0:00:10]} 12. Bg5 {[%emt 0:07:01]} f6 {[%emt 0:14:30]} 13. Bh4 {[%emt 0:00:04]} g5 {[%emt 0:03:21]} 14. Bg3 {[%emt 0:00:06]} Ne7 {[%emt 0:00:09]} 15. h4 {[%emt 0:00:48]} g4 {[%emt 0:00:29]} 16. h5 {[%emt 0:03:33]} Nc6 {[%emt 0:02:20]} 17. f4 {[%emt 0:10:05]} gxf3 {[%emt 0:13:35]} 1/2-1/2

[Event "SRB-chT Men 1st League 2019"]
[Site "Subotica"]
[Date "2019.08.30"]
[Round "9.16"]
[White "Miljkovic, Miroslav D"]
[Black "Dimic, Pavle"]
[Result "1-0"]
[ECO "E11"]
[WhiteElo "2483"]
[BlackElo "2349"]
[Annotator "ChessBase"]
[PlyCount "47"]
[EventDate "2019.08.23"]
[EventType "team-tourn"]
[EventCountry "SRB"]
[SourceTitle "playchess.com"]
[Source "ChessBase"]
[SourceQuality "1"]
[TimeControl "40/5400+30:1800+30"]

1. d4 {[%emt 0:00:00]} Nf6 {[%emt 0:00:00]} 2. c4 {[%emt 0:00:00]} e6 {[%emt 0:00:00]} 3. Nf3 {[%emt 0:00:00]} Bb4+ {[%emt 0:00:00]} 4. Bd2 {[%emt 0:00:00]} Qe7 {[%emt 0:00:05]} 5. g3 {[%emt 0:00:19]} Nc6 {[%emt 0:00:12]} 6. Nc3 {[%emt 0:00:29]} Bxc3 {[%emt 0:00:18]} 7. Bxc3 {[%emt 0:00:08]} Ne4 {[%emt 0:00:16]} 8. Rc1 {[%emt 0:00:13]} Nxc3 {[%emt 0:00:36]} 9. Rxc3 {[%emt 0:00:09]} O-O {[%emt 0:00:35]} 10. Bg2 {[%emt 0:00:17]} d6 {[%emt 0:00:42]} 11. d5 {[%emt 0:00:07]} Nb8 {[%emt 0:00:21]} 12. dxe6 {[%emt 0:01:11]} fxe6 {[%emt 0:00:30]} 13. O-O {[%emt 0:04:24]} Nd7 {[%emt 0:08:22]} 14. Nd4 {[%emt 0:04:49]} Nf6 {[%emt 0:05:25]} 15. c5 {[%emt 0:31:43]} d5 {[%emt 0:08:30]} 16. c6 {[%emt 0:00:09]} b6 {[%emt 0:03:42]} 17. f4 {[%emt 0:00:27]} e5 {[%emt 0:05:13]} 18. fxe5 {[%emt 0:00:10]} Qxe5 {[%emt 0:00:13]} 19. Qd2 {[%emt 0:00:28]} Bg4 {[%emt 0:07:39]} 20. h3 {[%emt 0:14:06]} Be6 {[%emt 0:16:28]} 21. Rxf6 {[%emt 0:10:31]} Rxf6 {[%emt 0:05:39]} 22. Re3 {[%emt 0:00:21]} Qd6 {[%emt 0:11:23]} 23. Nxe6 {[%emt 0:02:39]} Rxe6 {[%emt 0:04:26]} 24. Rxe6 {[%emt 0:00:50]} 1-0

[Event "SRB-chT Men 1st League 2019"]
[Site "Subotica"]
[Date "2019.08.30"]
[Round "9.17"]
[White "Klasan, Vladimir"]
[Black "Lazic, Miroljub"]
[Result "1/2-1/2"]
[ECO "C45"]
[WhiteElo "2357"]
[BlackElo "2387"]
[Annotator "NA"]
[PlyCount "54"]
[EventDate "2019.08.23"]
[EventType "team-tourn"]
[EventCountry "SRB"]
[SourceTitle "playchess.com"]
[Source "ChessBase"]
[SourceQuality "1"]
[TimeControl "40/5400+30:1800+30"]

1. e4 {[%emt 0:00:00]} e5 {[%emt 0:00:00]} 2. Nf3 {[%emt 0:00:00]} Nc6 {[%emt 0:00:00]} 3. d4 {[%emt 0:00:21]} exd4 {[%emt 0:00:00]} 4. Nxd4 {[%emt 0:00:07]} Bb4+ {[%emt 0:01:29]} 5. c3 {[%emt 0:00:23]} Bc5 {[%emt 0:00:01]} 6. Be3 {[%emt 0:00:40]} Bb6 {[%emt 0:00:05]} 7. Nf5 {[%emt 0:00:53]} Bxe3 {[%emt 0:00:24]} 8. Nxe3 {[%emt 0:00:15]} d6 {[%emt 0:01:00]} 9. c4 {[%emt 0:03:10]} Nge7 {[%emt 0:00:30]} 10. Nc3 {[%emt 0:02:02]} O-O {[%emt 0:00:16]} 11. Be2 {[%emt 0:03:35]} f5 {[%emt 0:05:32]} 12. exf5 {[%emt 0:01:25]} Nxf5 {[%emt 0:00:03]} 13. Nxf5 {[%emt 0:01:20]} Bxf5 {[%emt 0:00:04]} 14. O-O {[%emt 0:01:41]} Kh8 {[%emt 0:00:04]} 15. Qd2 {[%emt 0:05:07]} Qd7 {[%emt 0:09:15]} 16. f4 {[%emt 0:08:09]} Rae8 {[%emt 0:15:02]} 17. Bh5 {[%emt 0:08:41]} g6 {[%emt 0:01:15]} 18. Bf3 {[%emt 0:01:13]} Qg7 {[%emt 0:01:47]} 19. Rad1 {[%emt 0:06:30]} Bc8 {[%emt 0:06:47]} 20. Nd5 {[%emt 0:09:36]} Nd8 {[%emt 0:16:56]} 21. g3 {[%emt 0:06:17]} c6 {[%emt 0:14:34]} 22. Nc3 {[%emt 0:01:29]} Nf7 {[%emt 0:00:15]} 23. Rfe1 {[%emt 0:07:45]} g5 {[%emt 0:11:58]} 24. Rxe8 {[%emt 0:12:04]} Rxe8 {[%emt 0:00:04]} 25. Bh5 {[%emt 0:00:34]} gxf4 {[%emt 0:00:09]} 26. Qxf4 {[%emt 0:02:04]} Be6 {[%emt 0:06:48]} 27. Ne4 {[%emt 0:03:12]} Rf8 {[%emt 0:09:12]} 1/2-1/2

[Event "SRB-chT Men 1st League 2019"]
[Site "Subotica"]
[Date "2019.08.30"]
[Round "9.18"]
[White "Laketic, Gojko"]
[Black "Milekic, Daniel"]
[Result "0-1"]
[ECO "E14"]
[WhiteElo "2376"]
[BlackElo "2298"]
[Annotator "NA"]
[PlyCount "91"]
[EventDate "2019.08.23"]
[EventType "team-tourn"]
[EventCountry "SRB"]
[SourceTitle "playchess.com"]
[Source "ChessBase"]
[SourceQuality "1"]
[TimeControl "40/5400+30:1800+30"]

1. d4 {[%emt 0:04:07]} Nf6 {[%emt 0:00:00]} 2. c4 {[%emt 0:00:14]} e6 {[%emt 0:00:14]} 3. Nf3 {[%emt 0:00:56]} d5 {[%emt 0:00:06]} 4. Nc3 {[%emt 0:04:00]} c6 {[%emt 0:00:22]} 5. e3 {[%emt 0:02:53]} Nbd7 {[%emt 0:00:07]} 6. Qc2 {[%emt 0:00:28]} b6 {[%emt 0:00:11]} 7. cxd5 {[%emt 0:06:23]} exd5 {[%emt 0:00:10]} 8. Bd3 {[%emt 0:00:06]} Bb7 {[%emt 0:00:06]} 9. O-O {[%emt 0:00:28]} Be7 {[%emt 0:00:06]} 10. e4 {[%emt 0:05:45]} dxe4 {[%emt 0:02:53]} 11. Nxe4 {[%emt 0:00:06]} O-O {[%emt 0:01:18]} 12. Ne5 {[%emt 0:12:22]} c5 {[%emt 0:00:10]} 13. Ng5 {[%emt 0:17:01]} g6 {[%emt 0:01:07]} 14. Bc4 {[%emt 0:16:14]} Nd5 {[%emt 0:01:45]} 15. Qb3 {[%emt 0:08:19]} Nxe5 {[%emt 0:17:51]} 16. dxe5 {[%emt 0:00:09]} Bxg5 {[%emt 0:00:31]} 17. Rd1 {[%emt 0:04:45]} Bxc1 {[%emt 0:01:14]} 18. Raxc1 {[%emt 0:00:27]} Qg5 {[%emt 0:03:21]} 19. Bxd5 {[%emt 0:00:19]} Bxd5 {[%emt 0:00:20]} 20. Qxd5 {[%emt 0:00:20]} Rad8 {[%emt 0:00:36]} 21. Qe4 {[%emt 0:04:17]} Rd4 {[%emt 0:01:53]} 22. Qe1 {[%emt 0:05:03]} Re8 {[%emt 0:03:38]} 23. Rxd4 {[%emt 0:00:09]} cxd4 {[%emt 0:00:06]} 24. e6 {[%emt 0:00:19]} Rxe6 {[%emt 0:10:03]} 25. Rc8+ {[%emt 0:00:03]} Kg7 {[%emt 0:00:09]} 26. Qb4 {[%emt 0:00:01]} Qe5 {[%emt 0:07:15]} 27. Qf8+ {[%emt 0:00:45]} Kf6 {[%emt 0:00:09]} 28. h4 {[%emt 0:05:00]} Qe1+ {[%emt 0:10:34]} 29. Kh2 {[%emt 0:00:01]} Qxf2 {[%emt 0:01:42]} 30. Qd8+ {[%emt 0:02:30]} Kf5 {[%emt 0:01:37]} 31. Qd5+ {[%emt 0:00:35]} Kf4 {[%emt 0:00:42]} 32. Qg5+ {[%emt 0:01:09]} Ke4 {[%emt 0:00:20]} 33. Rd8 {[%emt 0:00:17]} f5 {[%emt 0:07:53]} 34. Rd7 {[%emt 0:00:41]} Qe3 {[%emt 0:05:52]} 35. Qd8 {[%emt 0:00:41]} Kd3 {[%emt 0:00:44]} 36. Qc7 {[%emt 0:00:35]} f4 {[%emt 0:02:54]} 37. Qc3+ {[%emt 0:00:29]} Ke4 {[%emt 0:04:05]} 38. Qc2+ {[%emt 0:00:30]} Qd3 {[%emt 0:01:27]} 39. Qc8 {[%emt 0:00:32]} Qg3+ {[%emt 0:00:27]} 40. Kg1 {[%emt 0:00:00]} Qe1+ {[%emt 0:00:00]} 41. Kh2 {[%emt 0:00:06]} Qxh4+ {[%emt 0:46:32]} 42. Kg1 Qe1+ {[%emt 0:00:00]} 43. Kh2 {[%emt 0:01:41]} Ke3 {[%emt 0:00:00]} 44. Rxh7 {[%emt 0:00:48]} Kf2 {[%emt 0:00:00]} 45. Qc2+ {[%emt 0:18:08]} Re2 {[%emt 0:00:00]} 46. Qc4 {[%emt 0:13:18]} 0-1

[Event "SRB-chT Men 1st League 2019"]
[Site "Subotica"]
[Date "2019.08.31"]
[Round "10.3"]
[White "Popovic, Dusan"]
[Black "Damljanovic, Branko"]
[Result "1/2-1/2"]
[ECO "B30"]
[WhiteElo "2481"]
[BlackElo "2483"]
[Annotator "ChessBase"]
[PlyCount "119"]
[EventDate "2019.08.23"]
[EventType "team-tourn"]
[EventCountry "SRB"]
[SourceTitle "playchess.com"]
[Source "ChessBase"]
[SourceQuality "1"]
[TimeControl "40/5400+30:1800+30"]

1. e4 {[%emt 0:00:00]} c5 {[%emt 0:00:00]} 2. Nc3 {[%emt 0:00:00]} Nc6 {[%emt 0:00:39]} 3. Bb5 {[%emt 0:00:00]} Nd4 {[%emt 0:00:05]} 4. Nf3 {[%emt 0:00:00]} e6 {[%emt 0:00:16]} 5. O-O {[%emt 0:01:04]} a6 {[%emt 0:04:18]} 6. Bd3 {[%emt 0:00:06]} Ne7 {[%emt 0:00:09]} 7. Nxd4 {[%emt 0:00:59]} cxd4 {[%emt 0:00:02]} 8. Ne2 {[%emt 0:00:09]} Nc6 {[%emt 0:00:04]} 9. c3 {[%emt 0:00:13]} Bc5 {[%emt 0:02:45]} 10. b4 {[%emt 0:00:30]} Ba7 {[%emt 0:00:21]} 11. Bb2 {[%emt 0:00:22]} dxc3 {[%emt 0:02:14]} 12. Bxc3 {[%emt 0:06:09]} O-O {[%emt 0:00:05]} 13. a4 {[%emt 0:01:15]} d5 {[%emt 0:00:07]} 14. exd5 {[%emt 0:18:35]} exd5 {[%emt 0:16:42]} 15. b5 {[%emt 0:00:41]} d4 {[%emt 0:07:11]} 16. bxc6 {[%emt 0:04:54]} dxc3 {[%emt 0:02:22]} 17. Be4 {[%emt 0:10:30]} bxc6 {[%emt 0:06:59]} 18. Bxc6 {[%emt 0:04:21]} Rb8 {[%emt 0:00:03]} 19. dxc3 {[%emt 0:05:08]} Qf6 {[%emt 0:06:22]} 20. Bd5 {[%emt 0:03:34]} Rd8 {[%emt 0:06:02]} 21. c4 {[%emt 0:11:15]} Be6 {[%emt 0:06:51]} 22. Ra3 {[%emt 0:04:30]} Bxd5 {[%emt 0:04:12]} 23. cxd5 {[%emt 0:00:11]} Rxd5 {[%emt 0:00:22]} 24. Rd3 {[%emt 0:06:35]} Rxd3 {[%emt 0:01:41]} 25. Qxd3 {[%emt 0:00:25]} g6 {[%emt 0:00:53]} 26. g3 {[%emt 0:01:08]} Rd8 {[%emt 0:10:02]} 27. Qe4 {[%emt 0:05:34]} Kg7 {[%emt 0:01:25]} 28. Qb7 {[%emt 0:02:12]} Bc5 {[%emt 0:01:44]} 29. Qc7 {[%emt 0:02:57]} Bb6 {[%emt 0:01:03]} 30. Qc2 {[%emt 0:00:05]} h5 {[%emt 0:03:36]} 31. Nf4 {[%emt 0:01:03]} h4 {[%emt 0:02:35]} 32. Rb1 {[%emt 0:01:20]} Rd6 {[%emt 0:02:12]} 33. Qe2 {[%emt 0:00:53]} Qf5 {[%emt 0:01:05]} 34. Rc1 {[%emt 0:02:30]} hxg3 {[%emt 0:06:34]} 35. hxg3 {[%emt 0:00:07]} Qf6 {[%emt 0:01:32]} 36. Rb1 {[%emt 0:02:39]} Qd4 {[%emt 0:00:55]} 37. Qc2 {[%emt 0:01:19]} Qe5 {[%emt 0:01:49]} 38. Kg2 {[%emt 0:01:00]} Qd4 {[%emt 0:01:46]} 39. Kg1 {[%emt 0:03:16]} Bd8 {[%emt 0:01:40]} 40. Rb7 {[%emt 0:00:00]} Qd1+ {[%emt 0:00:00]} 41. Qxd1 {[%emt 0:01:51]} Rxd1+ {[%emt 0:00:40]} 42. Kg2 {[%emt 0:00:07]} Rd6 {[%emt 0:00:14]} 43. Kf3 {[%emt 0:21:00]} Bb6 {[%emt 0:04:50]} 44. Ke2 {[%emt 0:00:29]} Bd4 {[%emt 0:04:54]} 45. g4 {[%emt 0:01:03]} Rc6 {[%emt 0:02:04]} 46. Nd5 {[%emt 0:03:58]} Re6+ {[%emt 0:08:54]} 47. Kf3 {[%emt 0:00:32]} Rd6 {[%emt 0:00:51]} 48. Ne3 {[%emt 0:01:29]} Rf6+ {[%emt 0:00:38]} 49. Ke4 {[%emt 0:00:25]} Bc5 {[%emt 0:02:02]} 50. Rc7 {[%emt 0:01:35]} Re6+ {[%emt 0:01:56]} 51. Kf3 {[%emt 0:00:35]} Bxe3 {[%emt 0:03:05]} 52. fxe3 {[%emt 0:00:05]} Re5 {[%emt 0:00:33]} 53. Rc6 {[%emt 0:00:26]} Ra5 {[%emt 0:00:26]} 54. Rc4 {[%emt 0:00:04]} Kf6 {[%emt 0:00:51]} 55. Kf4 {[%emt 0:01:47]} Ke6 {[%emt 0:00:33]} 56. Rb4 {[%emt 0:00:16]} f6 {[%emt 0:03:44]} 57. Rb6+ {[%emt 0:01:11]} Ke7 {[%emt 0:00:00]} 58. Rb7+ {[%emt 0:00:43]} Ke6 {[%emt 0:00:08]} 59. Rb6+ {[%emt 0:00:05]} Ke7 {[%emt 0:00:04]} 60. Ke4 {[%emt 0:04:50]} 1/2-1/2

[Event "SRB-chT Men 1st League 2019"]
[Site "Subotica"]
[Date "2019.08.31"]
[Round "10.4"]
[White "Tadic, Branko"]
[Black "Cabarkapa, Novak"]
[Result "1-0"]
[ECO "E60"]
[WhiteElo "2488"]
[BlackElo "2434"]
[Annotator "ChessBase"]
[PlyCount "65"]
[EventDate "2019.08.23"]
[EventType "team-tourn"]
[EventCountry "SRB"]
[SourceTitle "playchess.com"]
[Source "ChessBase"]
[SourceQuality "1"]
[TimeControl "40/5400+30:1800+30"]

1. Nf3 {[%emt 0:01:32]} Nf6 {[%emt 0:00:00]} 2. g3 {[%emt 0:00:10]} g6 {[%emt 0:00:00]} 3. b3 {[%emt 0:00:49]} Bg7 {[%emt 0:00:07]} 4. Bb2 {[%emt 0:00:07]} O-O {[%emt 0:00:15]} 5. Bg2 {[%emt 0:01:11]} d6 {[%emt 0:00:09]} 6. d4 {[%emt 0:00:07]} c5 {[%emt 0:00:37]} 7. c4 {[%emt 0:07:52]} Qa5+ {[%emt 0:00:37]} 8. Bc3 {[%emt 0:08:30]} Qc7 {[%emt 0:00:05]} 9. Nbd2 {[%emt 0:05:42]} Re8 {[%emt 0:00:10]} 10. d5 {[%emt 0:06:08]} e5 {[%emt 0:02:10]} 11. e4 {[%emt 0:06:16]} b5 {[%emt 0:04:58]} 12. cxb5 {[%emt 0:00:43]} Nxd5 {[%emt 0:01:05]} 13. exd5 {[%emt 0:11:53]} e4 {[%emt 0:00:17]} 14. Ne5 {[%emt 0:00:10]} Bxe5 {[%emt 0:12:09]} 15. Bxe5 {[%emt 0:00:08]} Rxe5 {[%emt 0:00:06]} 16. O-O {[%emt 0:00:15]} f5 {[%emt 0:00:35]} 17. Nc4 {[%emt 0:05:26]} Re8 {[%emt 0:05:25]} 18. f3 {[%emt 0:03:50]} exf3 {[%emt 0:03:31]} 19. Re1 {[%emt 0:07:09]} Bd7 {[%emt 0:02:56]} 20. Qxf3 {[%emt 0:00:45]} Bxb5 {[%emt 0:07:08]} 21. Qf4 {[%emt 0:08:18]} Rd8 {[%emt 0:06:54]} 22. Qh4 {[%emt 0:03:01]} Re8 {[%emt 0:04:11]} 23. a4 {[%emt 0:07:10]} Bd7 {[%emt 0:00:07]} 24. Re7 {[%emt 0:00:17]} Rxe7 {[%emt 0:00:06]} 25. Qxe7 {[%emt 0:00:05]} Na6 {[%emt 0:00:05]} 26. Nxd6 {[%emt 0:00:12]} Rf8 {[%emt 0:01:19]} 27. Bf1 {[%emt 0:01:09]} Nb8 {[%emt 0:10:09]} 28. Bc4 {[%emt 0:00:27]} Qd8 {[%emt 0:00:34]} 29. Re1 {[%emt 0:00:17]} Qxe7 {[%emt 0:00:15]} 30. Rxe7 {[%emt 0:00:06]} f4 {[%emt 0:01:08]} 31. Ne4 {[%emt 0:00:48]} h6 {[%emt 0:02:23]} 32. Nxc5 {[%emt 0:00:59]} Bh3 {[%emt 0:00:38]} 33. Rxa7 {[%emt 0:00:53]} 1-0